fUST/lending_fUST_20240826
["ID","MTS","AMOUNT","RATE_DAILY","PERIOD"]
[335999237,1724657445395,-371.828926,0.00013013,2]
[335999238,1724657445403,-2227.449844,0.00013013,2]
[335999240,1724657445413,-371.828926,0.00013013,2]
[335999242,1724657445421,-1134.746773,0.00013013,2]
[335999244,1724657445431,-1134.746773,0.00013013,2]
[335999245,1724657445440,-388.814781,0.00013013,2]
[335999246,1724657445449,-854.443322,0.00013013,2]
[335999247,1724657445458,-388.814781,0.00013013,2]
[335999248,1724657445467,-854.443322,0.00013013,2]
[335999250,1724657445477,-259.060845,0.00013013,2]
[335999251,1724657445487,-259.060845,0.00013013,2]
[335999252,1724657445496,-172.222521,0.00013014,2]
[335999253,1724657445505,-172.222521,0.00013014,2]
[335999254,1724657445514,-528.76901252,0.00013021,2]
[335999255,1724657445523,-503.99234135,0.00013021,2]
[335999257,1724657445533,-151.0,0.00013024,2]
[335999258,1724657445542,-500.0,0.00013024,2]
[335999259,1724657445551,-685.15,0.00013024,2]
[335999260,1724657445560,-500.0,0.00013024,2]
[335999261,1724657445569,-500.0,0.00013024,2]
[335999263,1724657445578,-571.8,0.00013024,2]
[335999264,1724657445587,-500.0,0.00013024,2]
[335999265,1724657445596,-248.21792377,0.00013024,2]
[335999266,1724657445605,-500.0,0.00013024,2]
[335999267,1724657445614,-617.81,0.00013024,2]
[335999269,1724657445623,-561.88,0.00013024,2]
[335999270,1724657445635,-500.0,0.00013024,2]
[335999271,1724657445645,-655.23,0.00013024,2]
[335999272,1724657445654,-500.0,0.00013024,2]
[335999274,1724657445663,-500.0,0.00013024,2]
[335999275,1724657445672,-1107.15,0.00013024,2]
[335999277,1724657445681,-952.65,0.00013024,2]
[335999279,1724657445691,-500.0,0.00013024,2]
[335999280,1724657445699,-229.549891,0.00013024,2]
[335999282,1724657445708,-229.549891,0.00013024,2]
[335999284,1724657445718,-500.0,0.00013024,2]
[335999285,1724657445727,-736.46,0.00013024,2]
[335999286,1724657445736,-544.78,0.00013024,2]
[335999287,1724657445745,-500.0,0.00013024,2]
[335999288,1724657445754,-541.95,0.00013024,2]
[335999289,1724657445763,-518.56,0.00013024,2]
[335999290,1724657445772,-637.21,0.00013024,2]
[335999292,1724657445781,-500.0,0.00013024,2]
[335999293,1724657445790,-500.0,0.00013024,2]
[335999294,1724657445799,-500.0,0.00013024,2]
[335999295,1724657445808,-514.64,0.00013024,2]
[335999296,1724657445817,-275.28902566,0.00013024,2]
[335999297,1724657445827,-500.0,0.00013024,2]
[335999299,1724657445836,-500.0,0.00013024,2]
[335999300,1724657445846,-500.0,0.00013024,2]
[335999301,1724657445855,-154.340883,0.00013024,2]
[335999302,1724657445865,-171.649858,0.00013024,2]
[335999303,1724657445874,-171.649858,0.00013024,2]
[335999305,1724657445886,-266.155314,0.00013024,2]
[335999306,1724657445895,-266.155314,0.00013024,2]
[335999308,1724657445905,-151.0,0.00013024,2]
[335999310,1724657445915,-293.33251,0.00013024,2]
[335999311,1724657445924,-293.33251,0.00013024,2]
[335999312,1724657445934,-151.0,0.00013024,2]
[335999314,1724657445943,-151.0,0.00013024,2]
[335999315,1724657445953,-832.943194,0.00013024,2]
[335999316,1724657445962,-832.943194,0.00013024,2]
[335999317,1724657445972,-647.952662,0.00013024,2]
[335999318,1724657445983,-647.952662,0.00013024,2]
[335999320,1724657445992,-151.0,0.00013035,2]
[335999321,1724657446002,-1720.027753,0.00013035,2]
[335999322,1724657446012,-1720.027753,0.00013035,2]
[335999323,1724657446023,-167.371446,0.00013035,2]
[335999324,1724657446033,-167.371446,0.00013035,2]
[335999325,1724657446043,-151.0,0.00013035,2]
[335999326,1724657446054,-151.0,0.00013035,2]
[335999327,1724657446064,-756.98409509,0.00013051,2]
[335999328,1724657446074,-413.88106461,0.00013051,2]
[335999329,1724657446083,-1416.0,0.00013092,2]
[335999330,1724657446093,-150.374,0.00013092,2]
[335999331,1724657446103,-524.143,0.00013092,2]
[335999332,1724657446113,-150.112233,0.000131,2]
[335999333,1724657446122,-150.112233,0.000131,2]
[335999334,1724657446133,-150.112233,0.000131,2]
[335999335,1724657446143,-150.112233,0.000131,2]
[335999336,1724657446153,-187.873,0.00013111,2]
[335999337,1724657446164,-150.112233,0.000132,2]
[335999338,1724657446174,-150.112233,0.000132,2]
[335999339,1724657446183,-150.112233,0.000132,2]
[335999341,1724657446193,-713.92,0.00013286,2]
[335999342,1724657446203,-500.0,0.00013286,2]
[335999343,1724657446212,-680.83,0.00013286,2]
[335999344,1724657446222,-500.0,0.00013286,2]
[335999345,1724657446234,-500.0,0.00013286,2]
[335999346,1724657446244,-500.0,0.00013286,2]
[335999347,1724657446253,-500.0,0.00013286,2]
[335999349,1724657446263,-809.92,0.00013286,2]
[335999350,1724657446273,-172.222521,0.00013286,2]
[335999351,1724657446282,-172.222521,0.00013286,2]
[335999352,1724657446292,-929.006949,0.00013286,2]
[335999353,1724657446302,-929.006949,0.00013286,2]
[335999355,1724657446311,-151.0,0.00013286,2]
[335999356,1724657446321,-151.0,0.00013286,2]
[335999357,1724657446331,-1502.814102,0.00013286,2]
[335999358,1724657446341,-1502.814102,0.00013286,2]
[335999359,1724657446350,-224.70081,0.00013286,2]
[335999360,1724657446360,-224.70081,0.00013286,2]
[335999361,1724657446369,-500.24,0.00013287,2]
[335999363,1724657446379,-500.0,0.00013287,2]
[335999364,1724657446389,-500.0,0.00013287,2]
[335999365,1724657446398,-500.0,0.00013287,2]
[335999366,1724657446408,-500.0,0.00013287,2]
[335999367,1724657446418,-550.3,0.00013287,2]
[335999369,1724657446427,-500.0,0.00013287,2]
[335999370,1724657446437,-500.0,0.00013287,2]
[335999371,1724657446446,-500.0,0.00013287,2]
[335999372,1724657446456,-545.8,0.00013287,2]
[335999373,1724657446466,-500.0,0.00013287,2]
[335999374,1724657446475,-500.0,0.00013287,2]
[335999376,1724657446486,-500.0,0.00013287,2]
[335999377,1724657446495,-449.25600094,0.00013287,2]
[335999378,1724657446506,-507.79,0.00013287,2]
[335999379,1724657446515,-501.99,0.00013287,2]
[335999380,1724657446524,-500.0,0.00013287,2]
[335999381,1724657446534,-500.0,0.00013287,2]
[335999382,1724657446544,-500.0,0.00013287,2]
[335999383,1724657446554,-500.0,0.00013287,2]
[335999385,1724657446564,-500.0,0.00013287,2]
[335999386,1724657446574,-521.96,0.00013287,2]
[335999387,1724657446584,-500.0,0.00013287,2]
[335999388,1724657446594,-500.0,0.00013287,2]
[335999390,1724657446608,-500.0,0.00013287,2]
[335999391,1724657446619,-500.0,0.00013287,2]
[335999392,1724657446630,-496.13859529,0.00013287,2]
[335999393,1724657446640,-500.0,0.00013287,2]
[335999394,1724657446651,-787.12,0.00013287,2]
[335999396,1724657446663,-500.0,0.00013287,2]
[335999398,1724657446673,-500.0,0.00013287,2]
[335999400,1724657446683,-500.0,0.00013287,2]
[335999402,1724657446692,-500.0,0.00013287,2]
[335999404,1724657446702,-500.0,0.00013287,2]
[335999406,1724657446712,-500.0,0.00013287,2]
[335999408,1724657446722,-644.16,0.00013287,2]
[335999410,1724657446732,-500.0,0.00013287,2]
[335999413,1724657446744,-500.0,0.00013287,2]
[335999415,1724657446755,-533.91,0.00013287,2]
[335999417,1724657446764,-500.0,0.00013287,2]
[335999419,1724657446774,-656.01,0.00013287,2]
[335999421,1724657446785,-500.0,0.00013287,2]
[335999423,1724657446796,-500.0,0.00013287,2]
[335999425,1724657446807,-500.0,0.00013287,2]
[335999427,1724657446818,-908.02,0.00013287,2]
[335999429,1724657446828,-500.0,0.00013287,2]
[335999430,1724657446838,-500.0,0.00013287,2]
[335999432,1724657446848,-882.98,0.00013287,2]
[335999434,1724657446858,-939.96,0.00013287,2]
[335999435,1724657446867,-862.46,0.00013287,2]
[335999437,1724657446877,-171.649858,0.00013287,2]
[335999438,1724657446887,-171.649858,0.00013287,2]
[335999439,1724657446897,-266.155314,0.00013287,2]
[335999440,1724657446907,-266.155314,0.00013287,2]
[335999441,1724657446916,-151.0,0.00013287,2]
[335999443,1724657446928,-293.33251,0.00013287,2]
[335999444,1724657446939,-293.33251,0.00013287,2]
[335999445,1724657446949,-151.0,0.00013287,2]
[335999446,1724657446959,-151.0,0.00013287,2]
[335999447,1724657446971,-151.0,0.00013287,2]
[335999448,1724657446980,-680.224576,0.00013287,2]
[335999449,1724657446990,-680.224576,0.00013287,2]
[335999451,1724657447000,-2360.207425,0.00013287,2]
[335999452,1724657447013,-2360.207425,0.00013287,2]
[335999453,1724657447023,-424.248062,0.00013287,2]
[335999454,1724657447033,-424.248062,0.00013287,2]
[335999455,1724657447043,-151.0,0.00013287,2]
[335999457,1724657447054,-1970.596315,0.00013287,2]
[335999458,1724657447065,-1970.596315,0.00013287,2]
[335999459,1724657447075,-151.0,0.00013287,2]
[335999460,1724657447085,-2227.449844,0.00013287,2]
[335999461,1724657447095,-371.828926,0.00013287,2]
[335999462,1724657447105,-2227.449844,0.00013287,2]
[335999463,1724657447115,-371.828926,0.00013287,2]
[335999465,1724657447125,-1134.746773,0.00013287,2]
[335999466,1724657447142,-1134.746773,0.00013287,2]
[335999467,1724657447155,-151.0,0.00013287,2]
[335999468,1724657447170,-591.764708,0.00013287,2]
[335999470,1724657447180,-591.764708,0.00013287,2]
[335999471,1724657447189,-151.0,0.00013287,2]
[335999472,1724657447200,-388.814781,0.00013287,2]
[335999473,1724657447210,-290.681715,0.00013287,2]
[335999474,1724657447220,-854.443322,0.00013287,2]
[335999475,1724657447230,-388.814781,0.00013287,2]
[335999476,1724657447240,-854.443322,0.00013287,2]
[335999478,1724657447250,-215.077654,0.00013287,2]
[335999479,1724657447260,-215.077654,0.00013287,2]
[335999480,1724657447270,-731.731778,0.00013287,2]
[335999481,1724657447281,-731.731778,0.00013287,2]
[335999482,1724657447291,-259.060845,0.00013287,2]
[335999484,1724657447301,-259.060845,0.00013287,2]
[335999485,1724657447311,-229.549891,0.00013288,2]
[335999486,1724657447321,-229.549891,0.00013288,2]
[335999487,1724657447331,-172.222521,0.00013288,2]
[335999488,1724657447340,-172.222521,0.00013288,2]
[335999490,1724657447353,-500.0,0.00013298,2]
[335999491,1724657447363,-685.15,0.00013298,2]
[335999492,1724657447373,-500.0,0.00013298,2]
[335999493,1724657447385,-500.0,0.00013298,2]
[335999494,1724657447394,-571.8,0.00013298,2]
[335999496,1724657447404,-500.0,0.00013298,2]
[335999497,1724657447414,-500.0,0.00013298,2]
[335999498,1724657447424,-617.81,0.00013298,2]
[335999499,1724657447433,-561.88,0.00013298,2]
[335999500,1724657447443,-500.0,0.00013298,2]
[335999502,1724657447453,-655.23,0.00013298,2]
[335999503,1724657447462,-500.0,0.00013298,2]
[335999504,1724657447472,-500.0,0.00013298,2]
[335999505,1724657447481,-1107.15,0.00013298,2]
[335999506,1724657447491,-952.65,0.00013298,2]
[335999508,1724657447500,-500.0,0.00013298,2]
[335999509,1724657447510,-229.549891,0.00013298,2]
[335999510,1724657447520,-229.549891,0.00013298,2]
[335999511,1724657447529,-500.0,0.00013298,2]
[335999512,1724657447539,-736.46,0.00013298,2]
[335999514,1724657447549,-544.78,0.00013298,2]
[335999515,1724657447559,-500.0,0.00013298,2]
[335999516,1724657447569,-541.95,0.00013298,2]
[335999517,1724657447579,-518.56,0.00013298,2]
[335999518,1724657447589,-637.21,0.00013298,2]
[335999520,1724657447599,-500.0,0.00013298,2]
[335999521,1724657447609,-500.0,0.00013298,2]
[335999522,1724657447618,-500.0,0.00013298,2]
[335999523,1724657447628,-514.64,0.00013298,2]
[335999524,1724657447642,-500.0,0.00013298,2]
[335999525,1724657447652,-500.0,0.00013298,2]
[335999526,1724657447662,-500.0,0.00013298,2]
[335999527,1724657447672,-171.649858,0.00013298,2]
[335999529,1724657447681,-171.649858,0.00013298,2]
[335999530,1724657447691,-266.155314,0.00013298,2]
[335999531,1724657447701,-266.155314,0.00013298,2]
[335999532,1724657447711,-151.38595,0.00013298,2]
[335999534,1724657447720,-293.33251,0.00013298,2]
[335999535,1724657447730,-293.33251,0.00013298,2]
[335999536,1724657447740,-1720.027753,0.00013298,2]
[335999538,1724657447751,-1720.027753,0.00013298,2]
[335999540,1724657447761,-167.371446,0.00013298,2]
[335999542,1724657447771,-167.371446,0.00013298,2]
[335999545,1724657447782,-151.0,0.00013298,2]
[335999547,1724657447791,-151.0,0.00013298,2]
[335999548,1724657447801,-294.814678,0.00013298,2]
[335999550,1724657447811,-151.0,0.00013298,2]
[335999551,1724657447821,-151.0,0.00013298,2]
[335999552,1724657447831,-150.112238,0.000133,2]
[335999553,1724657447843,-150.0,0.000133,30]
[335999555,1724657447855,-150.112233,0.000133,2]
[335999557,1724657447866,-465.00031372,0.00013341,2]
[335999558,1724657447875,-602.05167627,0.00013376,2]
[335999559,1724657447888,-420.0,0.00013388,2]
[335999560,1724657447897,-375.570197,0.00013425,2]
[335999561,1724657447907,-119891.51356034,0.0001344,2]
[335999563,1724657447917,-898.34782203,0.00013496,2]
[335999565,1724657447929,-222.64749043,0.00013497,2]
[335999567,1724657447941,-221.214557,0.00013543,2]
[335999568,1724657447953,-231.376027,0.00013543,2]
[335999569,1724657447963,-177.810925,0.00013543,2]
[335999570,1724657447972,-175.340599,0.00013543,2]
[335999572,1724657447982,-169.121281,0.00013543,2]
[335999573,1724657447991,-708.317955,0.00013543,2]
[335999574,1724657448000,-416.013653,0.00013543,2]
[335999575,1724657448010,-224.262003,0.00013543,2]
[335999576,1724657448020,-173.394935,0.00013543,2]
[335999577,1724657448030,-929.006949,0.00013543,2]
[335999578,1724657448040,-929.006949,0.00013543,2]
[335999579,1724657448050,-151.463524,0.00013543,2]
[335999580,1724657448060,-151.0,0.00013543,2]
[335999581,1724657448070,-1502.814102,0.00013543,2]
[335999582,1724657448081,-1502.814102,0.00013543,2]
[335999583,1724657448091,-224.70081,0.00013543,2]
[335999584,1724657448102,-224.70081,0.00013543,2]
[335999585,1724657448111,-713.92,0.0001356,2]
[335999586,1724657448121,-500.0,0.0001356,2]
[335999587,1724657448131,-680.83,0.0001356,2]
[335999588,1724657448142,-500.0,0.0001356,2]
[335999589,1724657448152,-500.0,0.0001356,2]
[335999590,1724657448165,-500.0,0.0001356,2]
[335999591,1724657448175,-500.0,0.0001356,2]
[335999592,1724657448184,-809.92,0.0001356,2]
[335999593,1724657448195,-172.222521,0.0001356,2]
[335999594,1724657448205,-172.222521,0.0001356,2]
[335999595,1724657448215,-151.0,0.0001356,2]
[335999596,1724657448225,-151.0,0.0001356,2]
[335999597,1724657448235,-832.943194,0.0001356,2]
[335999598,1724657448245,-832.943194,0.0001356,2]
[335999600,1724657448255,-647.952662,0.0001356,2]
[335999601,1724657448266,-13937.9147347,0.00013561,5]
[335999602,1724657448276,-500.24,0.00013561,2]
[335999603,1724657448285,-500.0,0.00013561,2]
[335999605,1724657448295,-500.0,0.00013561,2]
[335999606,1724657448304,-500.0,0.00013561,2]
[335999607,1724657448314,-500.0,0.00013561,2]
[335999608,1724657448324,-550.3,0.00013561,2]
[335999609,1724657448334,-500.0,0.00013561,2]
[335999610,1724657448344,-236.09635491,0.00013561,2]
[335999611,1724657448354,-500.0,0.00013561,2]
[335999613,1724657448363,-545.8,0.00013561,2]
[335999614,1724657448373,-377.97671547,0.00013561,2]
[335999621,1724657448650,500.0,0.00024931,60]
[335999628,1724657448969,500.0,0.00024931,60]
[335999633,1724657449162,500.0,0.00024931,60]
[335999636,1724657449253,500.0,0.00024931,60]
[335999639,1724657449461,-1602.38960371,0.00012152,2]
[335999640,1724657449472,-1602.38960371,0.00012223,2]
[335999641,1724657449482,-500.0,0.00012773,2]
[335999642,1724657449493,-308.8390755,0.00012985,2]
[335999644,1724657449504,-1000.0,0.00013321,2]
[335999645,1724657449514,-647.952662,0.0001356,2]
[335999646,1724657449524,-122.02328453,0.00013561,2]
[335999647,1724657449534,-500.0,0.00013561,2]
[335999649,1724657449544,-500.0,0.00013561,2]
[335999650,1724657449554,-507.79,0.00013561,2]
[335999651,1724657449564,-501.99,0.00013561,2]
[335999652,1724657449574,-500.0,0.00013561,2]
[335999653,1724657449584,-500.0,0.00013561,2]
[335999654,1724657449594,-500.0,0.00013561,2]
[335999655,1724657449603,-500.0,0.00013561,2]
[335999656,1724657449613,-618.38133251,0.00013561,2]
[335999657,1724657449623,-521.96,0.00013561,2]
[335999658,1724657449634,-500.0,0.00013561,2]
[335999659,1724657449645,-500.0,0.00013561,2]
[335999660,1724657449656,-500.0,0.00013561,2]
[335999661,1724657449667,-500.0,0.00013561,2]
[335999662,1724657449677,-500.0,0.00013561,2]
[335999663,1724657449687,-787.12,0.00013561,2]
[335999664,1724657449696,-500.0,0.00013561,2]
[335999665,1724657449705,-500.0,0.00013561,2]
[335999666,1724657449715,-500.0,0.00013561,2]
[335999667,1724657449725,-500.0,0.00013561,2]
[335999668,1724657449736,-500.0,0.00013561,2]
[335999669,1724657449745,-500.0,0.00013561,2]
[335999670,1724657449755,-500.0,0.00013561,2]
[335999671,1724657449764,-500.0,0.00013561,2]
[335999673,1724657449775,-533.91,0.00013561,2]
[335999674,1724657449784,-500.0,0.00013561,2]
[335999675,1724657449794,-656.01,0.00013561,2]
[335999676,1724657449803,-500.0,0.00013561,2]
[335999677,1724657449812,-500.0,0.00013561,2]
[335999678,1724657449822,-500.0,0.00013561,2]
[335999679,1724657449832,-908.02,0.00013561,2]
[335999680,1724657449841,-500.0,0.00013561,2]
[335999681,1724657449851,-500.0,0.00013561,2]
[335999682,1724657449860,-882.98,0.00013561,2]
[335999684,1724657449869,-939.96,0.00013561,2]
[335999685,1724657449880,-862.46,0.00013561,2]
[335999686,1724657449889,-171.649858,0.00013561,2]
[335999687,1724657449898,-171.649858,0.00013561,2]
[335999688,1724657449909,-266.155314,0.00013561,2]
[335999689,1724657449919,-266.155314,0.00013561,2]
[335999690,1724657449928,-293.33251,0.00013561,2]
[335999691,1724657449938,-293.33251,0.00013561,2]
[335999692,1724657449949,-1720.027753,0.00013561,2]
[335999693,1724657449961,-1720.027753,0.00013561,2]
[335999694,1724657449971,-167.371446,0.00013561,2]
[335999695,1724657449981,-167.371446,0.00013561,2]
[335999696,1724657449990,-151.0,0.00013561,2]
[335999697,1724657450002,-151.572648,0.00013561,2]
[335999698,1724657450012,-151.0,0.00013561,2]
[335999699,1724657450023,-288.502479,0.00013561,2]
[335999701,1724657450034,-680.224576,0.00013561,2]
[335999702,1724657450045,-680.224576,0.00013561,2]
[335999703,1724657450056,-2360.207425,0.00013561,2]
[335999704,1724657450066,-2360.207425,0.00013561,2]
[335999705,1724657450076,-424.248062,0.00013561,2]
[335999706,1724657450086,-424.248062,0.00013561,2]
[335999707,1724657450096,-151.0,0.00013561,2]
[335999708,1724657450106,-1970.596315,0.00013561,2]
[335999709,1724657450115,-1970.596315,0.00013561,2]
[335999710,1724657450124,-151.0,0.00013561,2]
[335999712,1724657450135,-2227.449844,0.00013561,2]
[335999713,1724657450144,-371.828926,0.00013561,2]
[335999714,1724657450156,-2227.449844,0.00013561,2]
[335999715,1724657450166,-371.828926,0.00013561,2]
[335999716,1724657450176,-1134.746773,0.00013561,2]
[335999718,1724657450186,-1134.746773,0.00013561,2]
[335999719,1724657450197,-175.738227,0.00013561,2]
[335999720,1724657450208,-591.764708,0.00013561,2]
[335999721,1724657450219,-591.764708,0.00013561,2]
[335999722,1724657450232,-151.0,0.00013561,2]
[335999723,1724657450245,-388.814781,0.00013561,2]
[335999724,1724657450256,-854.443322,0.00013561,2]
[335999725,1724657450267,-388.814781,0.00013561,2]
[335999726,1724657450276,-854.443322,0.00013561,2]
[335999727,1724657450285,-215.077654,0.00013561,2]
[335999728,1724657450295,-215.077654,0.00013561,2]
[335999729,1724657450304,-731.731778,0.00013561,2]
[335999730,1724657450313,-731.731778,0.00013561,2]
[335999731,1724657450323,-259.060845,0.00013561,2]
[335999732,1724657450335,-259.060845,0.00013561,2]
[335999733,1724657450345,-229.549891,0.00013562,2]
[335999734,1724657450356,-229.549891,0.00013562,2]
[335999735,1724657450366,-172.222521,0.00013562,2]
[335999736,1724657450375,-172.222517,0.00013562,2]
[335999737,1724657450387,-8263.86767575,0.00013571,2]
[335999738,1724657450407,-15022.70555057,0.00013571,2]
[335999740,1724657450452,500.0,0.00024931,60]
[335999742,1724657450503,500.0,0.00024931,60]
[335999744,1724657450554,199.62,0.00024931,60]
[335999745,1724657450598,500.0,0.00024931,60]
[335999746,1724657450650,286.45,0.00024931,60]
[335999748,1724657450759,-312.04773777,0.00012294,2]
[335999750,1724657450815,500.0,0.00024931,60]
[335999752,1724657450885,500.0,0.00024931,60]
[335999753,1724657450943,500.0,0.00024931,60]
[335999754,1724657450995,500.0,0.00024931,60]
[335999755,1724657451056,620.03,0.00024931,60]
[335999757,1724657451203,500.0,0.00024931,60]
[335999758,1724657451266,510.05,0.00024931,60]
[335999759,1724657451368,500.0,0.00024931,60]
[335999761,1724657451514,500.0,0.00024931,60]
[335999762,1724657451595,500.0,0.00024931,60]
[335999763,1724657451650,500.0,0.00024931,60]
[335999764,1724657451698,500.0,0.00024931,60]
[335999766,1724657451754,500.0,0.00024931,60]
[335999767,1724657451842,500.0,0.00024931,60]
[335999768,1724657451983,500.0,0.00024931,60]
[335999769,1724657452126,500.0,0.00024931,60]
[335999770,1724657452271,497.11,0.00024931,60]
[335999771,1724657452398,500.0,0.00024931,60]
[335999772,1724657452686,500.0,0.00024931,60]
[335999773,1724657453150,500.0,0.00024931,60]
[335999774,1724657453407,500.0,0.00024931,60]
[335999775,1724657453453,500.0,0.00024931,60]
[335999776,1724657453741,500.0,0.00024931,60]
[335999777,1724657454012,500.0,0.00024931,60]
[335999778,1724657454114,500.0,0.00024931,60]
[335999779,1724657454316,500.0,0.00024931,60]
[335999780,1724657454362,500.0,0.00024931,60]
[335999781,1724657454423,500.0,0.00024931,60]
[335999783,1724657454603,500.0,0.00024931,60]
[335999784,1724657454646,500.0,0.00024931,60]
[335999786,1724657454687,500.0,0.00024931,60]
[335999788,1724657454865,500.0,0.00024931,60]
[335999789,1724657454916,500.0,0.00024931,60]
[335999791,1724657454962,500.0,0.00024931,60]
[335999792,1724657455005,500.0,0.00024931,60]
[335999794,1724657455174,500.0,0.00024931,60]
[335999795,1724657455228,500.0,0.00024931,60]
[335999797,1724657455278,500.0,0.00024931,60]
[335999799,1724657455422,500.0,0.00024931,60]
[335999800,1724657455469,500.0,0.00024931,60]
[335999802,1724657455572,500.0,0.00024931,60]
[335999804,1724657455636,500.0,0.00024931,60]
[335999805,1724657455685,500.0,0.00024931,60]
[335999806,1724657455747,500.0,0.00024931,60]
[335999808,1724657455864,500.0,0.00024931,60]
[335999810,1724657455954,500.0,0.00024931,60]
[335999811,1724657455996,500.0,0.00024931,60]
[335999812,1724657456037,500.0,0.00024931,60]
[335999813,1724657456159,500.0,0.00024931,60]
[335999815,1724657456212,500.0,0.00024931,60]
[335999816,1724657456256,500.0,0.00024931,60]
[335999817,1724657456300,500.0,0.00024931,60]
[335999819,1724657456467,550.22380958,0.00024931,60]
[335999820,1724657456524,511.85,0.00024931,60]
[335999821,1724657456572,500.0,0.00024931,60]
[335999822,1724657456623,500.0,0.00024931,60]
[335999824,1724657456842,500.0,0.00024931,60]
[335999825,1724657456888,500.0,0.00024931,60]
[335999827,1724657457080,500.0,0.00024931,60]
[335999828,1724657457125,500.0,0.00024931,60]
[335999830,1724657457347,500.0,0.00024931,60]
[335999831,1724657457397,500.0,0.00024931,60]
[335999832,1724657457441,500.0,0.00024931,60]
[335999834,1724657457615,500.0,0.00024931,60]
[335999835,1724657457724,500.0,0.00024931,60]
[335999837,1724657457767,500.0,0.00024931,60]
[335999838,1724657457933,616.34,0.00024931,60]
[335999839,1724657457990,500.0,0.00024931,60]
[335999841,1724657458039,500.0,0.00024931,60]
[335999842,1724657458286,500.0,0.00024931,60]
[335999844,1724657458332,500.0,0.00024931,60]
[335999845,1724657458565,500.0,0.00024931,60]
[335999849,1724657458792,500.0,0.00024931,60]
[335999850,1724657458844,500.0,0.00024931,60]
[335999852,1724657458885,500.0,0.00024931,60]
[335999854,1724657459101,500.0,0.00024931,60]
[335999855,1724657459288,500.0,0.00024931,60]
[335999857,1724657459366,500.0,0.00024931,60]
[335999858,1724657459408,405.02775144,0.00024931,60]
[335999859,1724657459504,500.0,0.00024931,60]
[335999861,1724657459637,500.0,0.00024931,60]
[335999862,1724657459806,500.0,0.00024931,60]
[335999864,1724657459909,218.692779,0.00024931,60]
[335999865,1724657459954,500.0,0.00024931,60]
[335999866,1724657460041,500.0,0.00024931,60]
[335999867,1724657460228,500.0,0.00024931,60]
[335999868,1724657460353,500.0,0.00024931,60]
[335999869,1724657460413,538.84,0.00024931,60]
[335999870,1724657460516,500.0,0.00024931,60]
[335999871,1724657460632,538.84,0.00024931,60]
[335999872,1724657460697,500.0,0.00024931,60]
[335999874,1724657460794,500.0,0.00024931,60]
[335999875,1724657460851,500.0,0.00024931,60]
[335999876,1724657460903,538.84,0.00024931,60]
[335999878,1724657460953,500.0,0.00024931,60]
[335999880,1724657461075,500.0,0.00024931,60]
[335999881,1724657461121,500.0,0.00024931,60]
[335999883,1724657461172,538.84,0.00024931,60]